bitfinex-derivatives/quotes_BNBF0:USTF0_20250424
["timestamp","ask_amount","ask_price","bid_price","bid_amount"]
[1745475944957,0.28735276,606.7,605.1,0.59218447]
[1745475945154,0.28735276,606.7,604.82,0.28735276]
[1745475945357,0.28735276,606.7,604.83,0.8957627]
[1745475945557,1.26151995,606.71,604.84,0.8957627]
[1745475945859,1.26151995,606.24,604.85,0.59223926]
[1745475946054,1.26151995,606.24,604.86,0.59223926]
[1745475946258,1.26151995,606.24,604.87,0.59223926]
[1745475946452,1.26151995,606.24,604.88,0.59223926]
[1745475946653,1.26151995,606.24,604.89,0.59223926]
[1745475946852,0.28743465,606.23,604.9,0.59223926]
[1745475947057,0.28743465,606.23,604.91,0.59223926]
[1745475947256,0.28743465,606.23,604.92,0.59223926]
[1745475947455,0.28743465,606.23,604.93,0.59223926]
[1745475947658,0.28743465,606.23,604.94,0.59223926]
[1745475947856,0.28743465,606.23,604.95,0.59223926]
[1745475948055,0.28743465,606.23,604.96,0.59223926]
[1745475948362,0.28743465,606.23,604.97,0.59216704]
[1745475948663,1.26151995,606.43,604.98,0.59216704]
[1745475948861,1.26151995,606.43,604.99,0.59216704]
[1745475949058,1.26151995,606.43,605.0,0.59216704]
[1745475949262,1.26151995,606.43,605.01,0.59216704]
[1745475949465,1.26151995,606.43,605.02,0.59216704]
[1745475949656,1.26151995,606.43,605.03,0.59216704]
[1745475949858,0.28739548,606.42,605.04,0.59216704]
[1745475950163,0.28739548,606.42,605.05,0.59213654]
[1745475950364,0.28739548,606.42,604.86,0.28739548]
[1745475950659,0.28739548,606.42,604.87,0.59216347]
[1745475950863,0.28739548,606.42,604.88,0.59216347]
[1745475951062,0.28739548,606.42,604.86,0.28739548]
[1745475951063,0.28739548,606.42,604.89,0.59216347]
[1745475951261,0.28739548,606.42,604.9,0.59216347]
[1745475951461,0.28739548,606.42,604.91,0.59216347]
[1745475951662,1.26151995,606.5,604.92,0.59216347]
[1745475951965,1.26151995,606.5,604.93,0.59221142]
[1745475952163,1.26151995,606.5,604.94,0.59221142]
[1745475952359,1.26151995,606.5,604.95,0.59221142]
[1745475952560,1.26151995,606.5,604.96,0.59221142]
[1745475952762,1.26151995,606.5,604.97,0.59221142]
[1745475952963,0.28739429,606.49,604.98,0.59221142]
[1745475953163,0.28739429,606.49,604.99,0.59221142]
[1745475953365,1.54891424,606.49,605.0,0.59221142]
[1745475953663,1.54891424,606.49,605.01,0.59221142]
[1745475953858,1.54891424,606.49,605.02,0.59221142]
[1745475954062,1.54891424,606.49,605.03,0.59221142]
[1745475954262,1.54891424,606.49,605.04,0.59221142]
[1745475954462,1.54891424,606.49,605.05,0.59221142]
[1745475954666,1.26151995,606.49,604.81,1.3]
[1745475954866,1.26151995,606.49,604.82,0.59223511]
[1745475955164,1.26151995,606.49,604.81,1.3]
[1745475955165,1.26151995,606.49,604.83,0.59223511]
[1745475955367,1.26151995,606.49,604.84,0.59223511]
[1745475955566,1.26151995,606.49,604.85,0.59224779]
[1745475955867,0.28740853,606.48,604.86,0.59224779]
[1745475956069,0.28740853,606.48,604.87,0.59224779]
[1745475956267,0.28740853,606.48,604.88,0.59224779]
[1745475956468,0.28740853,606.48,604.89,0.59224779]
[1745475956668,0.28740853,606.48,604.9,0.59224779]
[1745475956866,1.26151995,606.36,604.91,0.59224779]
[1745475957065,1.26151995,606.36,604.92,0.59224779]
[1745475957265,1.26151995,606.36,604.93,0.59224779]
[1745475957469,1.26151995,606.36,604.94,0.59224779]
[1745475957662,1.26151995,606.36,604.95,0.59224779]
[1745475957865,1.26151995,606.36,604.96,0.59224779]
[1745475958065,1.26151995,606.36,604.97,0.59224779]
[1745475958263,1.26151995,606.36,604.98,0.59224779]
[1745475958465,1.26151995,606.36,604.99,0.59272361]
[1745475958662,1.26151995,606.36,604.85,0.28740853]
[1745475958868,1.26151995,606.36,604.86,0.59273772]
[1745475959068,1.26151995,606.36,604.87,0.59273772]
[1745475959367,1.26151995,606.36,604.88,0.59273772]
[1745475959570,1.26151995,606.36,604.89,0.59273772]
[1745475959770,1.26151995,606.36,604.9,0.59273772]
[1745475959970,1.26151995,606.27,604.91,0.59273772]
[1745475960166,1.26151995,606.27,604.85,0.28740853]
[1745475960167,1.26151995,606.27,604.92,0.59273772]
[1745475960366,1.26151995,606.27,604.93,0.59273772]
[1745475960566,1.26151995,606.27,604.94,0.59273772]
[1745475960766,1.26151995,606.27,604.95,0.59273772]
[1745475961066,1.26151995,606.27,604.96,0.59273772]
[1745475961267,1.26151995,606.27,604.97,0.59273772]
[1745475961473,1.26151995,606.27,604.98,0.59273772]
[1745475961674,1.26151995,606.27,604.99,0.59273772]
[1745475961974,1.26151995,606.27,605.0,0.59273772]
[1745475962169,1.26151995,606.27,605.01,0.59273772]
[1745475962376,1.26151995,606.27,605.02,0.59273772]
[1745475962571,1.26151995,606.27,605.03,0.59273772]
[1745475962770,1.26151995,606.15,605.04,0.59273772]
[1745475962972,1.26151995,606.15,605.05,0.59273772]
[1745475963170,1.26151995,606.15,605.06,0.59273772]
[1745475963373,1.26151995,606.15,604.85,0.28740853]
[1745475963569,1.26151995,606.15,604.86,0.59291811]
[1745475963774,1.26151995,606.15,604.87,0.89643632]
[1745475964070,1.26151995,606.15,604.88,0.89643632]
[1745475964276,1.26151995,606.15,604.89,0.89617493]
[1745475964470,1.26151995,606.15,604.9,0.89617493]
[1745475964672,1.26151995,606.15,604.91,0.59265672]
[1745475964872,1.26151995,606.12,604.92,0.59265672]
[1745475965071,1.26151995,606.12,604.85,0.28740853]
[1745475965072,1.26151995,606.12,604.93,0.59265672]
[1745475965271,1.26151995,606.12,604.94,0.59265672]
[1745475965472,1.26151995,606.12,604.95,0.59265672]
[1745475965673,1.26151995,606.12,604.96,0.59265672]
[1745475965870,1.26151995,606.12,604.97,0.59265672]
[1745475966177,1.26151995,606.12,604.98,0.59265672]
[1745475966477,1.26151995,606.12,604.99,0.59265672]
[1745475966671,1.26151995,606.23,605.0,0.59265672]
[1745475966870,1.26151995,606.23,605.01,0.59265672]
[1745475967074,1.26151995,606.23,605.02,0.59265672]
[1745475967275,1.26151995,606.23,605.03,0.59265672]
[1745475967575,1.26151995,606.23,605.04,0.59265672]
[1745475967775,1.26151995,606.23,605.05,0.59265672]
[1745475967972,1.26151995,606.23,604.87,0.28743108]
[1745475967973,1.26151995,606.21,605.06,0.59265672]
[1745475968277,1.26151995,606.21,605.07,0.59265672]
[1745475968479,1.26151995,606.21,605.08,0.59265672]
[1745475968678,1.26151995,606.21,605.09,0.59265672]
[1745475968881,1.26151995,606.21,605.1,0.59265672]
[1745475969175,1.26151995,606.21,605.11,0.59265672]
[1745475969380,1.26151995,606.21,605.12,0.59265672]
[1745475969680,1.26151995,606.21,604.81,1.3]
[1745475969880,1.26151995,606.21,604.82,0.89599397]
[1745475970182,1.26151995,606.21,604.83,0.89599397]
[1745475970385,1.26151995,606.21,604.84,0.89599397]
[1745475970584,1.26151995,606.21,604.85,0.89599397]
[1745475970786,1.26151995,606.21,604.86,0.89599397]
[1745475970985,1.26151995,606.21,604.87,0.89599397]
[1745475971285,1.26151995,606.21,604.88,0.89599397]
[1745475971483,1.26151995,606.21,604.89,0.5924829]
[1745475971779,1.26151995,606.21,604.9,0.5924829]
[1745475971978,1.26151995,606.21,604.91,0.5924829]
[1745475972184,1.26151995,606.21,604.92,0.5924829]
[1745475972484,1.26151995,606.21,604.93,0.5924829]
[1745475972689,0.28743465,606.26,604.94,0.5924829]
[1745475972882,0.28743465,606.26,604.95,0.5924829]
[1745475973080,0.28743465,606.26,604.96,0.5924829]
[1745475973384,0.28743465,606.26,604.97,0.5924829]
[1745475973579,0.28743465,606.26,604.98,0.5924829]
[1745475973881,0.28743465,606.26,604.99,0.5924829]
[1745475974079,0.28743465,606.26,605.0,0.5924829]
[1745475974283,0.28743465,606.26,605.01,0.5924829]
[1745475974480,0.28743465,606.26,605.02,0.5924829]
[1745475974685,0.28743465,606.26,605.03,0.5924829]
[1745475974881,0.28743465,606.26,605.04,0.5924829]
[1745475975084,0.28743465,606.26,604.85,0.28743465]
[1745475975085,0.28743465,606.26,605.05,0.59217734]
[1745475975287,0.28743465,606.26,605.06,0.59217734]
[1745475975585,0.28743465,606.26,605.07,0.59218109]
[1745475975782,0.28743465,606.26,605.08,0.59218109]
[1745475975980,0.28743465,606.26,605.09,0.58325815]
[1745475976185,0.28743465,606.26,604.93,1.019]
[1745475978587,1.26151995,606.66,604.93,1.019]
[1745475979889,0.28736344,606.65,604.93,1.019]
[1745475981090,0.28736344,606.65,604.93,2.12]
[1745475981790,1.26151995,606.66,604.93,3.529]
[1745475982892,0.28736344,606.65,604.93,3.529]
[1745475983391,1.26151995,606.57,604.93,3.529]
[1745475984685,1.26151995,606.53,604.93,3.529]
[1745475985991,0.28737887,606.52,604.93,3.529]
[1745475986886,1.26151995,606.48,604.93,3.529]
[1745475987891,1.26151995,606.48,604.94,0.59251585]
[1745475988090,1.26151995,606.48,604.93,3.529]
[1745475988391,1.26151995,606.48,604.94,0.59252878]
[1745475988591,1.26151995,606.48,604.95,0.59252878]
[1745475988890,0.28738598,606.47,604.96,0.59252878]
[1745475989091,0.28738598,606.47,604.97,0.59252878]
[1745475989293,0.28738598,606.47,604.98,0.59252878]
[1745475989496,0.28738598,606.47,604.99,0.59252878]
[1745475989691,0.28738598,606.47,605.0,0.59252878]
[1745475989888,0.28738598,606.47,605.01,0.59252878]
[1745475990092,0.28738598,606.47,605.02,0.59266908]
[1745475990291,0.28738598,606.47,605.03,0.59266908]
[1745475990488,1.26151995,606.5,605.04,0.59266908]
[1745475990690,1.26151995,606.5,605.05,0.59266908]
[1745475990895,1.26151995,606.4,605.06,0.59266908]
[1745475991095,1.26151995,606.4,605.07,0.59266908]
[1745475991292,1.26151995,606.4,605.08,0.59285208]
[1745475991493,1.26151995,606.4,604.93,3.529]
[1745475991494,1.26151995,606.4,605.09,0.59285208]
[1745475991795,0.28737887,606.39,605.1,0.59285208]
[1745475991993,0.28737887,606.39,605.11,0.59285685]
[1745475992191,0.28737887,606.39,605.12,0.59285685]
[1745475992390,0.28737887,606.39,605.13,0.59285685]
[1745475992691,0.28737887,606.39,605.14,0.59285685]
[1745475992996,0.28737887,606.39,605.15,0.59285685]
[1745475993190,0.28737887,606.39,605.16,0.59285685]
[1745475993395,0.28737887,606.39,604.93,3.529]
[1745475993595,1.26151995,606.47,604.94,0.59323018]
[1745475993795,1.26151995,606.47,604.95,0.59323018]
[1745475993995,1.26151995,606.47,604.96,0.59323018]
[1745475994295,1.26151995,606.47,604.97,0.59323018]
[1745475994596,1.26151995,606.47,604.98,0.59323018]
[1745475994797,1.26151995,606.47,604.99,0.59323018]
[1745475994994,0.28738361,606.46,605.0,0.59323018]
[1745475995194,0.28738361,606.46,605.01,0.59323018]
[1745475995496,0.28738361,606.46,605.02,0.59323018]
[1745475995797,1.54890356,606.46,605.03,0.59317574]
[1745475995996,1.54890356,606.46,605.04,0.59317574]
[1745475996200,1.54890356,606.46,605.05,0.59317574]
[1745475996498,1.26151995,606.46,605.06,0.59317574]
[1745475996697,1.26151995,606.46,605.07,0.59317574]
[1745475996994,0.28737293,606.45,605.08,0.59317574]
[1745475997199,0.28737293,606.45,605.09,0.59317574]
[1745475997497,0.28737293,606.45,605.1,0.59317574]
[1745475997699,0.28737293,606.45,605.11,0.59317574]
[1745475997893,0.28737293,606.45,605.12,0.59317574]
[1745475998098,0.28737293,606.45,605.13,0.59317574]
[1745475998299,1.26151995,606.41,605.14,0.59317574]
[1745475998599,1.26151995,606.41,605.15,0.59317574]
[1745475998800,1.26151995,606.41,605.16,0.59317574]
[1745475999100,1.26151995,606.41,604.93,2.407367]
[1745475999297,1.26151995,606.41,604.94,0.59303333]
[1745475999498,1.26151995,606.41,604.95,0.59303333]
[1745475999699,1.26151995,606.41,604.96,0.59303333]
[1745475999897,1.26151995,606.41,604.97,0.59303333]
[1745476000100,1.26151995,606.41,604.98,0.59303333]
[1745476000302,1.26151995,606.41,604.99,0.59303333]
[1745476000602,1.26151995,606.41,605.0,0.59303333]
[1745476000802,2.14633602,607.04,604.93,2.12]
[1745476000803,1.26151995,606.36,605.01,0.59303333]
[1745476000998,1.26151995,606.36,605.02,0.59303333]
[1745476001197,1.26151995,606.36,605.03,0.59300357]
[1745476001399,1.26151995,606.36,605.04,0.59300357]
[1745476001599,1.26151995,606.36,605.05,0.59300357]
[1745476001804,1.26151995,606.36,605.06,0.59300357]
[1745476001997,1.26151995,606.36,605.07,0.59300357]
[1745476002199,1.26151995,606.36,605.08,0.59300357]
[1745476002399,1.26151995,606.36,605.09,0.59300357]
[1745476002605,1.26151995,606.36,605.1,0.59300357]
[1745476002805,1.26151995,606.36,605.11,0.59296793]
[1745476003004,1.26151995,606.36,605.12,0.59296793]
[1745476003200,1.26151995,606.36,605.13,0.59296793]
[1745476003404,1.26151995,606.36,605.14,0.59296793]
[1745476003598,1.26151995,606.23,605.15,0.59296793]
[1745476003802,1.26151995,606.23,605.16,0.59296793]
[1745476004004,1.26151995,606.23,605.17,0.59296793]
[1745476004204,1.26151995,606.23,605.18,0.59296793]
[1745476004406,1.26151995,606.23,605.04,1.512]
[1745476004605,1.26151995,606.23,605.05,0.59291505]
[1745476004800,1.26151995,606.23,605.06,0.59291505]
[1745476005005,1.26151995,606.23,605.07,0.59291505]
[1745476005199,1.26151995,606.23,605.08,0.59291505]
[1745476005404,1.26151995,606.23,605.09,0.59291505]
[1745476005907,1.26151995,606.23,605.1,0.59289899]
[1745476006101,1.26151995,606.23,605.11,0.59289899]
[1745476006300,1.26151995,606.23,605.12,0.59289899]
[1745476006501,1.26151995,606.23,605.13,0.59289899]
[1745476006706,1.26151995,606.16,605.14,0.59289899]
[1745476007006,1.26151995,606.16,605.15,0.59289899]
[1745476007207,1.26151995,606.16,605.16,0.59289899]
[1745476007407,1.26151995,606.16,605.17,0.59289899]
[1745476007706,1.26151995,606.16,605.18,0.59289899]
[1745476007904,1.26151995,606.16,605.19,0.59289899]
[1745476008108,1.26151995,606.16,605.13,1.314]
[1745476008309,1.26151995,606.16,605.14,0.59291649]
[1745476008504,1.26151995,606.16,605.15,0.59291649]
[1745476008808,1.26151995,606.16,605.16,0.59291649]
[1745476009008,1.54890356,606.32,605.17,0.59291649]
[1745476009209,1.54890356,606.32,605.18,0.59291649]
[1745476009411,1.54890356,606.32,605.19,0.59291649]
[1745476009611,1.54890356,606.32,605.2,0.59291649]
[1745476009811,1.54890356,606.32,605.13,1.314]
[1745476010005,1.54890356,606.32,605.14,0.59284315]
[1745476010208,1.54890356,606.32,605.15,0.59284315]
[1745476010405,1.54890356,606.32,605.16,0.59284315]
[1745476010609,1.54890356,606.32,605.17,0.59284315]
[1745476010812,1.54890356,606.32,605.18,0.59284315]
[1745476011008,1.54890356,606.32,605.19,0.59284315]
[1745476011205,1.54890356,606.32,605.2,0.59287198]
[1745476011511,1.26151995,606.31,605.13,1.314]
[1745476011706,1.26151995,606.31,605.14,0.59289335]
[1745476011909,1.26151995,606.31,605.15,0.59289335]
[1745476012109,1.26151995,606.31,605.16,0.59289335]
[1745476012310,1.26151995,606.31,605.17,0.59289335]
[1745476012607,1.26151995,606.31,605.18,0.59289335]
[1745476012805,1.26151995,606.31,605.19,0.59289335]
[1745476013010,1.26151995,606.31,605.13,1.314]
[1745476013206,1.26151995,606.31,605.14,0.59291945]
[1745476013409,1.26151995,606.31,605.15,0.59291945]
[1745476013713,1.26151995,606.3,605.16,0.59291945]
[1745476013907,1.26151995,606.3,605.17,0.59291945]
[1745476014105,1.26151995,606.3,605.18,0.59291945]
[1745476014309,1.26151995,606.3,605.13,1.314]
[1745476014508,1.26151995,606.3,605.14,0.59292986]
[1745476014709,1.26151995,606.3,605.15,0.59292986]
[1745476014912,1.26151995,606.3,605.16,0.59294382]
[1745476015110,1.26151995,606.3,605.17,0.59294382]
[1745476015312,1.26151995,606.3,605.18,0.59294382]
[1745476015516,1.26151995,606.3,605.13,1.314]
[1745476015719,1.26151995,606.3,605.14,0.59294534]
[1745476015909,1.26151995,606.3,605.15,0.59294534]
[1745476016214,1.54888932,606.32,605.16,0.59294534]
[1745476016407,1.54888932,606.32,605.17,0.59294534]
[1745476016611,1.26151995,606.32,605.18,0.59294534]
[1745476016811,1.26151995,606.32,605.19,0.59253489]
[1745476017012,1.26151995,606.32,605.2,0.59253489]
[1745476017210,1.26151995,606.32,605.21,0.59253489]
[1745476017410,1.26151995,606.32,605.22,0.59253489]
[1745476017613,1.26151995,606.32,605.23,0.59253489]
[1745476017916,1.26151995,606.32,605.24,0.59253489]
[1745476018116,1.26151995,606.32,605.25,0.59253489]
[1745476018313,1.26151995,606.32,605.26,0.59253489]
[1745476018509,1.26151995,606.32,605.27,0.59253489]
[1745476018710,1.26151995,606.32,605.28,0.59253489]
[1745476018913,1.26151995,606.32,605.29,0.59253489]
[1745476019116,1.26151995,606.32,605.3,0.59253489]
[1745476019417,0.28729939,606.56,605.31,0.59253489]
[1745476019615,0.28729939,606.56,605.32,0.59253489]
[1745476019810,0.28729939,606.56,605.33,0.59253489]
[1745476020011,0.28729939,606.56,605.34,0.59253489]
[1745476020213,0.28729939,606.56,605.35,0.59253489]
[1745476020416,0.28729939,606.56,605.36,0.59253489]
[1745476020615,0.28729939,606.56,605.37,0.59253489]
[1745476020813,0.28729939,606.56,605.35,1.455]
[1745476021015,0.28729939,606.56,605.36,0.59200709]
[1745476021218,0.28729939,606.56,605.36,1.127]
[1745476022520,0.28729939,606.56,605.37,0.5917695]
[1745476022819,0.28729939,606.56,605.36,1.127]
[1745476023019,0.28729939,606.56,605.37,0.59177188]
[1745476023221,0.28729939,606.56,605.36,1.127]
[1745476023519,1.26151995,607.0,605.36,1.127]
[1745476024321,2.14633602,607.4,605.36,1.127]
[1745476024322,1.26151995,606.67,605.36,1.127]
[1745476024821,0.28724721,606.66,605.36,1.127]
[1745476025620,0.28724721,606.66,605.37,0.931]
[1745476026521,1.26151995,606.67,605.37,0.931]
[1745476026818,0.28724603,606.65,605.37,0.931]
[1745476027023,1.26151995,606.63,605.37,0.931]
[1745476030126,1.26151995,606.65,605.37,0.931]
[1745476030824,0.2872484,606.64,605.37,0.931]
[1745476032527,1.26151995,606.65,605.37,0.931]
[1745476032922,0.2872484,606.64,605.37,0.931]
[1745476035530,1.26151995,607.07,605.37,0.931]
[1745476035840,1.26151995,607.1,605.37,0.931]
[1745476036529,1.26151995,607.1,605.38,0.937]
[1745476036927,0.28719506,607.09,605.38,0.937]
[1745476038531,2.14633602,606.88,605.38,0.937]
[1745476038827,1.26151995,606.76,605.38,0.937]
[1745476039833,0.28723417,606.75,605.38,0.937]
[1745476041435,0.28723417,606.75,605.39,1.14]
[1745476044540,1.26151995,606.76,605.39,1.14]
[1745476045940,0.28722825,606.75,605.39,1.14]
[1745476050541,1.26151995,606.77,605.39,1.14]
[1745476050943,0.28722706,606.74,605.39,1.14]
[1745476053547,1.26151995,606.79,605.39,1.14]
[1745476054851,1.54874464,606.78,605.39,1.14]
[1745476056450,0.28722469,606.78,605.39,1.14]
[1745476059453,1.26151995,606.5,605.39,1.14]
[1745476059651,1.26151995,606.5,604.92,1.04785832]
[1745476059845,1.26151995,606.5,605.4,1.256]
[1745476060146,1.26151995,606.5,605.4,2.675]
[1745476061156,1.26151995,606.5,605.4,3.936]
[1745476061950,1.26151995,606.5,605.4,5.098]
[1745476062454,1.26151995,606.49,605.4,5.098]
[1745476064760,1.26151995,606.48,605.4,5.098]
[1745476067460,0.28726026,606.61,605.4,5.098]
[1745476068555,1.26151995,606.7,605.4,5.098]
[1745476069860,0.28723417,606.69,605.4,5.098]
[1745476070260,1.26151995,606.66,605.4,5.098]
[1745476072665,1.26151995,606.68,605.4,5.098]
[1745476073465,1.26151995,606.68,605.41,0.59170311]
[1745476073667,1.26151995,606.68,605.4,5.098]
[1745476075870,0.60808892,613.55,605.4,5.098]
[1745476075871,0.28725551,606.67,605.4,5.098]
[1745476076263,1.26151995,607.1,605.4,5.098]
[1745476078868,0.28720573,607.09,605.4,5.098]
[1745476080573,1.26151995,607.15,605.4,5.098]
[1745476080972,1.26151995,607.15,605.41,0.59280774]
[1745476081173,1.26151995,607.15,605.4,5.098]
[1745476081367,1.26151995,607.15,605.41,0.59279711]
[1745476081567,1.26151995,607.15,605.4,3.837]
[1745476081766,1.26151995,607.15,605.41,0.59279357]
[1745476081970,1.26151995,607.08,605.4,3.837]
[1745476083173,1.26151995,607.08,605.41,0.59273648]
[1745476083367,1.26151995,607.08,605.4,3.837]
[1745476083571,1.26151995,607.08,605.41,0.59273542]
[1745476083769,1.26151995,607.08,605.4,4.949]
[1745476083972,1.26151995,607.08,605.41,0.59271977]
[1745476084173,1.26151995,607.08,605.4,4.949]
[1745476084374,1.26151995,607.08,605.41,0.59271245]
[1745476084671,1.26151995,607.08,605.4,4.949]
[1745476084875,1.26151995,607.01,605.41,0.5927207]
[1745476085075,1.26151995,607.01,605.4,4.949]
[1745476085377,1.26151995,607.01,605.41,0.59272865]
[1745476085572,1.26151995,607.01,605.4,4.949]
[1745476085771,1.26151995,607.01,605.41,0.59272363]
[1745476086076,1.26151995,607.01,605.4,4.949]
[1745476086872,1.26151995,606.59,605.4,4.949]
[1745476087876,0.2872567,606.58,605.4,4.949]
[1745476089281,1.26151995,606.5,605.4,4.949]
[1745476091983,1.26151995,606.48,605.4,4.949]
[1745476093284,1.26151995,606.48,605.41,0.59216976]
[1745476093485,1.26151995,606.48,605.4,4.949]
[1745476093784,1.26151995,606.48,605.41,0.59212537]
[1745476094085,1.26151995,606.48,605.42,0.59212537]
[1745476094278,1.26151995,606.48,605.43,0.59207084]
[1745476094478,1.26151995,606.48,605.4,2.531]
[1745476094680,1.26151995,606.48,605.41,0.59209311]
[1745476094880,1.26151995,606.48,605.4,2.531]
[1745476095082,1.26151995,606.48,605.41,0.59211827]
[1745476095283,1.26151995,606.48,605.42,0.59211827]
[1745476095481,0.287265,606.59,605.4,2.531]
[1745476095680,1.26151995,606.82,605.41,0.59211598]
[1745476095878,0.28695233,606.61,605.42,0.59211598]
[1745476096081,1.26151995,606.82,605.41,1.105]
[1745476096281,1.26151995,606.82,605.42,0.59209814]
[1745476096482,1.26151995,606.82,605.41,1.105]
[1745476096687,1.26151995,606.82,605.42,0.59208003]
[1745476096983,1.26151995,606.82,605.41,1.105]
[1745476096984,0.28721876,606.81,605.41,2.628]
[1745476097191,0.28721876,606.81,605.42,0.59211517]
[1745476097389,0.28721876,606.81,605.41,2.628]
[1745476097390,0.28721876,606.81,605.43,0.59211517]
[1745476097591,0.28721876,606.81,605.44,0.59211517]
[1745476097789,0.28721876,606.81,605.41,2.628]
[1745476098090,0.28721876,606.81,605.42,0.59212264]
[1745476098284,0.28721876,606.81,605.43,0.59212264]
[1745476098490,0.28721876,606.81,605.44,0.59212264]
[1745476098693,0.28721876,606.81,605.45,0.59210481]
[1745476098894,0.28721876,606.81,605.41,2.628]
[1745476099192,0.28721876,606.81,605.42,0.59208299]
[1745476099390,0.28721876,606.81,605.43,0.59208299]
[1745476099591,0.28721876,606.81,605.44,0.59208299]
[1745476099893,0.28721876,606.81,605.41,2.628]
[1745476100095,0.28721876,606.81,605.42,0.59210966]
[1745476100293,0.28721876,606.81,605.43,0.59210966]
[1745476100592,0.28721876,606.81,605.44,0.59210966]
[1745476100794,0.28721876,606.81,605.41,2.628]
[1745476100990,0.28721876,606.81,605.42,0.59214884]
[1745476101188,0.28721876,606.81,605.43,0.59214884]
[1745476101388,0.28721876,606.81,605.44,0.59214884]
[1745476101590,1.26151995,606.86,605.41,2.628]
[1745476101792,1.26151995,606.86,605.42,0.59212638]
[1745476101989,0.28721047,606.8,605.43,0.59212638]
[1745476102195,0.28721047,606.8,605.44,0.59212638]
[1745476102396,0.28721047,606.8,605.45,0.59217204]
[1745476102599,0.28721047,606.8,605.41,2.628]
[1745476102890,0.28721047,606.8,605.42,0.59218403]
[1745476103095,0.28721047,606.8,605.43,0.59218403]
[1745476103294,0.28721047,606.8,605.44,0.59218403]
[1745476103490,0.28721047,606.8,605.45,0.59218403]
[1745476103695,0.28721047,606.8,605.41,2.628]
[1745476103889,0.28721047,606.8,605.42,0.59218052]
[1745476104091,0.28721047,606.8,605.41,2.628]
[1745476104295,0.28721047,606.8,605.42,0.5921804]
[1745476104496,0.28721047,606.8,605.41,2.628]
[1745476104698,1.26151995,606.93,605.42,0.592155]
[1745476104893,0.2871998,606.79,605.41,2.628]
[1745476105098,1.26151995,606.93,605.42,0.59216387]
[1745476105401,1.26151995,606.79,605.41,2.628]
[1745476105595,1.26151995,606.79,605.42,1.72817304]
[1745476105795,1.26151995,606.79,605.42,1.136]
[1745476105999,0.28721758,606.78,605.42,1.136]
[1745476107200,0.28721758,606.78,605.43,0.59197576]
[1745476107404,0.28721758,606.78,605.44,0.59197576]
[1745476107593,1.26151995,606.79,605.45,0.59197576]
[1745476107798,1.26151995,606.79,605.46,0.59197576]
[1745476107998,1.26151995,606.79,605.47,0.59197576]
[1745476108198,1.26151995,606.81,605.48,0.59197576]
[1745476108396,1.26151995,606.81,605.49,0.59197576]
[1745476108598,1.26151995,606.81,605.5,0.59197576]
[1745476108796,0.2871844,606.8,605.51,0.59197576]
[1745476109000,0.2871844,606.8,605.52,0.59197576]
[1745476109199,0.2871844,606.8,605.53,0.59197576]
[1745476109396,0.2871844,606.8,605.42,1.136]
[1745476109601,0.2871844,606.8,605.43,0.59154413]
[1745476109799,1.26151995,606.81,605.44,0.59154413]
[1745476109999,1.26151995,606.81,605.45,0.59154413]
[1745476110199,1.26151995,606.81,605.46,0.59154413]
[1745476110402,1.26151995,606.81,605.47,0.59154413]
[1745476110603,1.26151995,606.81,605.48,0.59154413]
[1745476110803,1.26151995,606.81,605.49,0.59154413]
[1745476111004,1.26151995,606.81,605.5,0.59154413]
[1745476111203,1.26151995,606.81,605.51,0.59154413]
[1745476111404,1.26151995,607.07,605.52,0.59154413]
[1745476111607,1.26151995,607.07,605.53,0.59093037]
[1745476111806,1.26151995,607.07,605.54,0.59093037]
[1745476112007,0.28713819,607.06,605.55,0.59093037]
[1745476112308,0.28713819,607.06,605.56,0.59093037]
[1745476112507,0.28713819,607.06,605.42,1.136]
[1745476112708,0.28713819,607.06,605.43,0.59083753]
[1745476112910,0.28713819,607.06,605.44,0.59083753]
[1745476113116,0.28713819,607.06,605.45,0.59083753]
[1745476113416,0.28713819,607.06,605.46,0.59083753]
[1745476113616,1.26151995,607.07,605.47,0.59083753]
[1745476113816,1.26151995,607.07,605.48,0.59083753]
[1745476114118,1.26151995,607.54,605.49,0.59083753]
[1745476114318,1.26151995,607.54,605.5,0.59067176]
[1745476114518,1.26151995,607.54,605.51,0.59067176]
[1745476114816,0.28708489,607.53,605.52,0.59067176]
[1745476115016,0.28708489,607.53,605.5,1.597]
[1745476115017,0.28708489,607.53,605.53,0.59067176]
[1745476115218,0.28708489,607.53,605.54,0.59067176]
[1745476115419,0.28708489,607.53,605.5,1.597]
[1745476115614,0.28708489,607.53,605.51,0.59053988]
[1745476115918,0.28708489,607.53,605.52,0.59053988]
[1745476116118,0.28708489,607.53,605.53,0.59053988]
[1745476116320,0.28708489,607.53,605.54,0.59053988]
[1745476116513,0.28708489,607.53,605.5,1.597]
[1745476116712,1.26151995,607.54,605.51,0.59045097]
[1745476116918,0.28708016,607.52,605.52,0.59045097]